[Event "Titled Tuesday Blitz March 21 Early 2023"]
[White "Vakhlamov, Igor L."]
[Black "Bodnaruk, Anastasia"]
[WhiteFideId "24126748"]
[BlackFideId "4181751"]
[WhiteElo "2400"]
[BlackElo "2310"]
[Result "0-1"]
[Round "08"]
[TimeControl "180+2"]
[Date "2023.03.21"]
[WhiteClock "0:00:05"]
[BlackClock "0:00:11"]

1. e4 {[%clk 0:03:00]}  c5 {[%clk 0:02:59]} 2. Nf3 {[%clk 0:03:01]}  d6 {[%clk 0:03:00]} 3. Nc3 {[%clk 0:03:02]}  Nf6 {[%clk 0:02:54]} 4. d4 {[%clk 0:03:02]}  cxd4 {[%clk 0:02:54]} 5. Qxd4 {[%clk 0:03:03]}  Nc6 {[%clk 0:02:51]} 6. Bb5 {[%clk 0:03:04]}  Bd7 {[%clk 0:02:52]} 7. Bxc6 {[%clk 0:03:04]}  Bxc6 {[%clk 0:02:52]} 8. Bg5 {[%clk 0:03:05]}  e6 {[%clk 0:02:53]} 9. O-O-O {[%clk 0:03:05]}  Be7 {[%clk 0:02:53]} 10. Rhe1 {[%clk 0:03:05]}  O-O {[%clk 0:02:53]} 11. e5 {[%clk 0:03:05]}  dxe5 {[%clk 0:02:52]} 12. Nxe5 {[%clk 0:03:06]}  Qc7 {[%clk 0:02:47]} 13. Qc4 {[%clk 0:03:05]}  Rfd8 {[%clk 0:02:41]} 14. Nxc6 {[%clk 0:03:05]}  Qxc6 {[%clk 0:02:37]} 15. Qxc6 {[%clk 0:03:06]}  bxc6 {[%clk 0:02:38]} 16. Bxf6 {[%clk 0:03:03]}  Bxf6 {[%clk 0:02:38]} 17. Ne4 {[%clk 0:03:03]}  Be7 {[%clk 0:02:38]} 18. c3 {[%clk 0:02:40]}  f6 {[%clk 0:02:33]} 19. f4 {[%clk 0:02:36]}  Kf7 {[%clk 0:02:32]} 20. Kc2 {[%clk 0:02:36]}  h6 {[%clk 0:02:28]} 21. a4 {[%clk 0:02:27]}  g5 {[%clk 0:02:24]} 22. g3 {[%clk 0:02:16]}  f5 {[%clk 0:02:15]} 23. Nd2 {[%clk 0:02:12]}  gxf4 {[%clk 0:02:15]} 24. gxf4 {[%clk 0:02:13]}  Bd6 {[%clk 0:02:14]} 25. Rf1 {[%clk 0:02:12]}  Bc7 {[%clk 0:02:12]} 26. Nb3 {[%clk 0:02:01]}  Rxd1 {[%clk 0:02:12]} 27. Kxd1 {[%clk 0:02:02]}  Rg8 {[%clk 0:02:06]} 28. Nd4 {[%clk 0:01:53]}  c5 {[%clk 0:02:01]} 29. Nb5 {[%clk 0:01:53]}  Bb8 {[%clk 0:02:01]} 30. Rf2 {[%clk 0:01:30]}  Rg4 {[%clk 0:01:59]} 31. Rd2 {[%clk 0:01:26]}  Ke7 {[%clk 0:01:59]} 32. b4 {[%clk 0:01:22]}  a6 {[%clk 0:01:47]} 33. Na3 {[%clk 0:01:21]}  cxb4 {[%clk 0:01:45]} 34. cxb4 {[%clk 0:01:22]}  Rxf4 {[%clk 0:01:45]} 35. Rb2 {[%clk 0:01:10]}  Bd6 {[%clk 0:01:42]} 36. Nc2 {[%clk 0:01:09]}  e5 {[%clk 0:01:35]} 37. b5 {[%clk 0:01:00]}  axb5 {[%clk 0:01:29]} 38. axb5 {[%clk 0:01:01]}  Kd7 {[%clk 0:01:29]} 39. b6 {[%clk 0:00:59]}  Kc8 {[%clk 0:01:27]} 40. b7+ {[%clk 0:00:57]}  Kb8 {[%clk 0:01:27]} 41. Ne3 {[%clk 0:00:57]}  Bc5 {[%clk 0:01:18]} 42. Ng2 {[%clk 0:00:20]}  Rf1+ {[%clk 0:01:17]} 43. Ne1 {[%clk 0:00:20]}  e4 {[%clk 0:01:11]} 44. Rb5 {[%clk 0:00:18]}  Bd4 {[%clk 0:01:02]} 45. Ke2 {[%clk 0:00:18]}  Rf2+ {[%clk 0:01:02]} 46. Kd1 {[%clk 0:00:19]}  Rxh2 {[%clk 0:01:01]} 47. Nc2 {[%clk 0:00:19]}  Bc3 {[%clk 0:00:36]} 48. Rc5 {[%clk 0:00:15]}  Bd2 {[%clk 0:00:29]} 49. Rxf5 {[%clk 0:00:14]}  e3 {[%clk 0:00:27]} 50. Re5 {[%clk 0:00:13]}  Rh3 {[%clk 0:00:17]} 51. Re7 {[%clk 0:00:12]}  h5 {[%clk 0:00:17]} 52. Nd4 {[%clk 0:00:11]}  Rh1+ {[%clk 0:00:14]} 53. Ke2 {[%clk 0:00:10]}  Rc1 {[%clk 0:00:14]} 54. Nb3 {[%clk 0:00:05]}  Rc2 {[%clk 0:00:14]} 55. Kd3 {[%clk 0:00:05]}  Rc3+ {[%clk 0:00:13]} 56. Ke4 {[%clk 0:00:04]}  Rxb3 {[%clk 0:00:13]} 57. Kd5 {[%clk 0:00:04]}  Rxb7 {[%clk 0:00:11]} 58. Rxe3 {[%clk 0:00:05]}  Bxe3 {[%clk 0:00:11]} 0-1


[Site "https://www.chess.com"]

[Event "Titled Tuesday Blitz March 21 Early 2023"]
[White "Narayanan, Srinath"]
[Black "The_Sherman_Variation"]
[WhiteFideId "5018420"]
[WhiteElo "2438"]
[BlackElo "2544"]
[Result "0-1"]
[Round "08"]
[TimeControl "180+2"]
[Date "2023.03.21"]
[WhiteClock "0:00:34"]
[BlackClock "0:01:30"]

1. Nf3 {[%clk 0:03:00]}  Nf6 {[%clk 0:02:58]} 2. c4 {[%clk 0:03:01]}  g6 {[%clk 0:02:53]} 3. b3 {[%clk 0:02:58]}  Bg7 {[%clk 0:02:54]} 4. Bb2 {[%clk 0:02:55]}  O-O {[%clk 0:02:55]} 5. g3 {[%clk 0:02:55]}  d6 {[%clk 0:02:54]} 6. Bg2 {[%clk 0:02:55]}  e5 {[%clk 0:02:54]} 7. O-O {[%clk 0:02:56]}  Nc6 {[%clk 0:02:50]} 8. Nc3 {[%clk 0:02:57]}  Nh5 {[%clk 0:02:48]} 9. d3 {[%clk 0:02:56]}  f5 {[%clk 0:02:48]} 10. Nd5 {[%clk 0:02:56]}  f4 {[%clk 0:02:42]} 11. Qd2 {[%clk 0:02:49]}  g5 {[%clk 0:02:40]} 12. Rac1 {[%clk 0:02:48]}  Be6 {[%clk 0:02:33]} 13. Qc2 {[%clk 0:02:38]}  b6 {[%clk 0:02:22]} 14. Nd2 {[%clk 0:02:38]}  Qd7 {[%clk 0:02:20]} 15. Ne4 {[%clk 0:02:37]}  h6 {[%clk 0:02:17]} 16. Rfd1 {[%clk 0:02:35]}  Bh3 {[%clk 0:02:15]} 17. Bh1 {[%clk 0:02:34]}  Nd4 {[%clk 0:02:05]} 18. Qd2 {[%clk 0:01:33]}  c6 {[%clk 0:01:50]} 19. Ndc3 {[%clk 0:01:33]}  Rf7 {[%clk 0:01:46]} 20. e3 {[%clk 0:01:32]}  fxe3 {[%clk 0:01:42]} 21. fxe3 {[%clk 0:01:33]}  Nf3+ {[%clk 0:01:40]} 22. Bxf3 {[%clk 0:01:33]}  Rxf3 {[%clk 0:01:41]} 23. Nf2 {[%clk 0:01:33]}  Raf8 {[%clk 0:01:39]} 24. Nxh3 {[%clk 0:00:33]}  Qxh3 {[%clk 0:01:40]} 25. Rc2 {[%clk 0:00:34]}  Rf1+ {[%clk 0:01:30]} 0-1


[Site "https://www.chess.com"]

[Event "Titled Tuesday Blitz March 21 Early 2023"]
[White "Hamitevici, Vladimir"]
[Black "Reprintsev, Alexander"]
[WhiteFideId "13902393"]
[BlackFideId "14100541"]
[WhiteElo "2401"]
[BlackElo "2229"]
[Result "0-1"]
[Round "08"]
[TimeControl "180+2"]
[Date "2023.03.21"]
[WhiteClock "0:00:02"]
[BlackClock "0:00:34"]

1. e4 {[%clk 0:03:00]}  d5 {[%clk 0:02:58]} 2. exd5 {[%clk 0:02:59]}  Qxd5 {[%clk 0:02:58]} 3. Nc3 {[%clk 0:03:00]}  Qa5 {[%clk 0:02:58]} 4. d4 {[%clk 0:02:58]}  Nf6 {[%clk 0:02:58]} 5. Nf3 {[%clk 0:02:56]}  Nc6 {[%clk 0:02:46]} 6. Bb5 {[%clk 0:02:48]}  Ne4 {[%clk 0:02:45]} 7. Bd2 {[%clk 0:02:40]}  Nxc3 {[%clk 0:02:43]} 8. Bxc6+ {[%clk 0:02:39]}  bxc6 {[%clk 0:02:43]} 9. Bxc3 {[%clk 0:02:39]}  Qd5 {[%clk 0:02:44]} 10. O-O {[%clk 0:02:29]}  Bg4 {[%clk 0:02:43]} 11. Qd3 {[%clk 0:02:25]}  Bxf3 {[%clk 0:02:43]} 12. Qxf3 {[%clk 0:02:14]}  Qxf3 {[%clk 0:02:42]} 13. gxf3 {[%clk 0:02:15]}  e6 {[%clk 0:02:42]} 14. a4 {[%clk 0:02:10]}  Rb8 {[%clk 0:02:37]} 15. a5 {[%clk 0:02:04]}  Bb4 {[%clk 0:02:33]} 16. Ra4 {[%clk 0:01:58]}  Bxc3 {[%clk 0:02:33]} 17. bxc3 {[%clk 0:01:59]}  Kd7 {[%clk 0:02:33]} 18. Rc1 {[%clk 0:01:47]}  Rb5 {[%clk 0:02:32]} 19. Kf1 {[%clk 0:01:46]}  Rhb8 {[%clk 0:02:30]} 20. Ke2 {[%clk 0:01:42]}  Rh5 {[%clk 0:02:30]} 21. Rh1 {[%clk 0:01:31]}  Rbb5 {[%clk 0:02:29]} 22. a6 {[%clk 0:01:30]}  c5 {[%clk 0:02:26]} 23. dxc5 {[%clk 0:01:13]}  Kc6 {[%clk 0:02:24]} 24. c4 {[%clk 0:01:11]}  Rbxc5 {[%clk 0:02:15]} 25. Kd3 {[%clk 0:00:54]}  Rcf5 {[%clk 0:02:12]} 26. Ke2 {[%clk 0:00:52]}  Rh3 {[%clk 0:02:07]} 27. Ra3 {[%clk 0:00:48]}  Rh4 {[%clk 0:02:02]} 28. Rb1 {[%clk 0:00:41]}  Rxc4 {[%clk 0:01:49]} 29. Rb7 {[%clk 0:00:39]}  Rxc2+ {[%clk 0:01:49]} 30. Ke3 {[%clk 0:00:40]}  Re5+ {[%clk 0:01:45]} 31. Kf4 {[%clk 0:00:34]}  Rcc5 {[%clk 0:01:41]} 32. Rxa7 {[%clk 0:00:34]}  g5+ {[%clk 0:01:39]} 33. Kg4 {[%clk 0:00:31]}  Rc4+ {[%clk 0:01:28]} 34. Kg3 {[%clk 0:00:29]}  h5 {[%clk 0:01:28]} 35. Rb7 {[%clk 0:00:20]}  Re1 {[%clk 0:01:11]} 36. Kg2 {[%clk 0:00:14]}  Rcc1 {[%clk 0:01:05]} 37. f4 {[%clk 0:00:15]}  Rg1+ {[%clk 0:00:59]} 38. Kf3 {[%clk 0:00:15]}  g4+ {[%clk 0:01:00]} 39. Ke4 {[%clk 0:00:12]}  Ra1 {[%clk 0:00:59]} 40. Rbb3 {[%clk 0:00:12]}  Rae1+ {[%clk 0:00:55]} 41. Kd4 {[%clk 0:00:11]}  Rd1+ {[%clk 0:00:49]} 42. Rd3 {[%clk 0:00:09]}  Rxd3+ {[%clk 0:00:48]} 43. Kxd3 {[%clk 0:00:10]}  Rd1+ {[%clk 0:00:48]} 44. Ke4 {[%clk 0:00:10]}  Rd8 {[%clk 0:00:49]} 45. Ke5 {[%clk 0:00:10]}  Ra8 {[%clk 0:00:41]} 46. Kf6 {[%clk 0:00:09]}  Kd5 {[%clk 0:00:42]} 47. Kxf7 {[%clk 0:00:06]}  c5 {[%clk 0:00:42]} 48. Rd3+ {[%clk 0:00:06]}  Ke4 {[%clk 0:00:41]} 49. Rd6 {[%clk 0:00:05]}  Kxf4 {[%clk 0:00:40]} 50. Rxe6 {[%clk 0:00:05]}  c4 {[%clk 0:00:40]} 51. Rf6+ {[%clk 0:00:04]}  Ke4 {[%clk 0:00:39]} 52. Kg6 {[%clk 0:00:04]}  Kd5 {[%clk 0:00:38]} 53. Kxh5 {[%clk 0:00:04]}  c3 {[%clk 0:00:38]} 54. Rf5+ {[%clk 0:00:04]}  Kd4 {[%clk 0:00:38]} 55. Rf6 {[%clk 0:00:04]}  Kd5 {[%clk 0:00:37]} 56. Rf5+ {[%clk 0:00:05]}  Kd6 {[%clk 0:00:38]} 57. Rf4 {[%clk 0:00:04]}  Rc8 {[%clk 0:00:34]} 58. a7 {[%clk 0:00:03]}  c2 {[%clk 0:00:34]} 59. Rd4+ {[%clk 0:00:02]}  Ke5 {[%clk 0:00:34]} 0-1


[Site "https://www.chess.com"]

[Event "Titled Tuesday Blitz March 21 Early 2023"]
[White "Darini, Pouria"]
[Black "Vaglio Munoz, Jaime"]
[WhiteFideId "12502200"]
[BlackFideId "6500145"]
[WhiteElo "2482"]
[BlackElo "2199"]
[Result "1-0"]
[Round "08"]
[TimeControl "180+2"]
[Date "2023.03.21"]
[WhiteClock "0:01:32"]
[BlackClock "0:00:06"]

1. e4 {[%clk 0:02:51]}  c6 {[%clk 0:02:59]} 2. d4 {[%clk 0:02:50]}  d5 {[%clk 0:02:59]} 3. e5 {[%clk 0:02:48]}  c5 {[%clk 0:02:57]} 4. Nf3 {[%clk 0:02:44]}  Nc6 {[%clk 0:02:57]} 5. dxc5 {[%clk 0:02:44]}  Bg4 {[%clk 0:02:55]} 6. c3 {[%clk 0:02:44]}  e6 {[%clk 0:02:54]} 7. Be3 {[%clk 0:02:44]}  Qc7 {[%clk 0:02:54]} 8. Bb5 {[%clk 0:02:43]}  a6 {[%clk 0:02:47]} 9. Ba4 {[%clk 0:02:43]}  Ne7 {[%clk 0:02:43]} 10. O-O {[%clk 0:02:43]}  Ng6 {[%clk 0:02:39]} 11. h3 {[%clk 0:02:39]}  Bxf3 {[%clk 0:02:38]} 12. Qxf3 {[%clk 0:02:40]}  Qxe5 {[%clk 0:02:38]} 13. c4 {[%clk 0:02:36]}  Qe4 {[%clk 0:01:36]} 14. Qxe4 {[%clk 0:02:36]}  dxe4 {[%clk 0:01:36]} 15. Nc3 {[%clk 0:02:36]}  f5 {[%clk 0:01:34]} 16. b4 {[%clk 0:02:36]}  Kf7 {[%clk 0:01:29]} 17. a3 {[%clk 0:02:19]}  Nce5 {[%clk 0:01:28]} 18. Rad1 {[%clk 0:02:15]}  Nxc4 {[%clk 0:01:25]} 19. Bd7 {[%clk 0:02:15]}  Nxa3 {[%clk 0:01:15]} 20. Ne2 {[%clk 0:01:52]}  Be7 {[%clk 0:01:13]} 21. Nd4 {[%clk 0:01:52]}  Nf8 {[%clk 0:01:11]} 22. Ba4 {[%clk 0:01:49]}  Nc4 {[%clk 0:00:58]} 23. Bb3 {[%clk 0:01:50]}  Ne5 {[%clk 0:00:42]} 24. Nxf5 {[%clk 0:01:50]}  Nc6 {[%clk 0:00:32]} 25. f3 {[%clk 0:01:34]}  Ke8 {[%clk 0:00:19]} 26. Nxg7+ {[%clk 0:01:33]}  Kf7 {[%clk 0:00:18]} 27. Nxe6 {[%clk 0:01:32]}  Nxe6 {[%clk 0:00:17]} 28. fxe4+ {[%clk 0:01:32]}  Ke8 {[%clk 0:00:17]} 29. Bxe6 {[%clk 0:01:32]}  Nd8 {[%clk 0:00:06]} 30. Bd7# {[%clk 0:01:32]} 1-0


[Site "https://www.chess.com"]

[Event "Titled Tuesday Blitz March 21 Early 2023"]
[White "Belozerov, Andrei"]
[Black "Yosha_Iglesias"]
[WhiteFideId "4120213"]
[WhiteElo "2360"]
[BlackElo "2476"]
[Result "1-0"]
[Round "08"]
[TimeControl "180+2"]
[Date "2023.03.21"]
[WhiteClock "0:00:24"]
[BlackClock "0:00:01"]

1. e4 {[%clk 0:03:00]}  c5 {[%clk 0:02:59]} 2. Nf3 {[%clk 0:02:59]}  d6 {[%clk 0:03:00]} 3. Bb5+ {[%clk 0:02:58]}  Bd7 {[%clk 0:03:00]} 4. Bxd7+ {[%clk 0:02:57]}  Qxd7 {[%clk 0:03:01]} 5. c4 {[%clk 0:02:58]}  e5 {[%clk 0:02:52]} 6. Nc3 {[%clk 0:02:56]}  g6 {[%clk 0:02:49]} 7. a3 {[%clk 0:02:55]}  Ne7 {[%clk 0:02:39]} 8. b4 {[%clk 0:02:52]}  Bg7 {[%clk 0:02:35]} 9. Nd5 {[%clk 0:02:28]}  Nxd5 {[%clk 0:02:11]} 10. cxd5 {[%clk 0:02:28]}  b6 {[%clk 0:02:07]} 11. d3 {[%clk 0:02:17]}  O-O {[%clk 0:02:02]} 12. bxc5 {[%clk 0:02:16]}  bxc5 {[%clk 0:02:01]} 13. Nd2 {[%clk 0:02:15]}  f5 {[%clk 0:01:53]} 14. Nc4 {[%clk 0:02:14]}  Qe7 {[%clk 0:01:34]} 15. Rb1 {[%clk 0:01:59]}  Nd7 {[%clk 0:01:29]} 16. O-O {[%clk 0:01:55]}  Rab8 {[%clk 0:01:18]} 17. Bd2 {[%clk 0:01:54]}  Rxb1 {[%clk 0:00:58]} 18. Qxb1 {[%clk 0:01:53]}  Rb8 {[%clk 0:00:58]} 19. Qc2 {[%clk 0:01:53]}  Qf8 {[%clk 0:00:58]} 20. Rb1 {[%clk 0:01:51]}  Nb6 {[%clk 0:00:47]} 21. Na5 {[%clk 0:01:46]}  Bh6 {[%clk 0:00:45]} 22. Be1 {[%clk 0:01:43]}  fxe4 {[%clk 0:00:38]} 23. dxe4 {[%clk 0:01:42]}  Qf7 {[%clk 0:00:20]} 24. a4 {[%clk 0:01:34]}  Rf8 {[%clk 0:00:19]} 25. Nc6 {[%clk 0:01:27]}  Nd7 {[%clk 0:00:17]} 26. Rb7 {[%clk 0:01:19]}  Be3 {[%clk 0:00:15]} 27. Rxd7 {[%clk 0:01:00]}  Qxd7 {[%clk 0:00:15]} 28. fxe3 {[%clk 0:01:00]}  Qg4 {[%clk 0:00:16]} 29. h3 {[%clk 0:00:55]}  Qg5 {[%clk 0:00:12]} 30. Qe2 {[%clk 0:00:48]}  a6 {[%clk 0:00:10]} 31. Kh2 {[%clk 0:00:42]}  h5 {[%clk 0:00:10]} 32. Na5 {[%clk 0:00:39]}  h4 {[%clk 0:00:08]} 33. Nc4 {[%clk 0:00:39]}  Rf6 {[%clk 0:00:07]} 34. Qg4 {[%clk 0:00:35]}  Qxg4 {[%clk 0:00:07]} 35. hxg4 {[%clk 0:00:36]}  g5 {[%clk 0:00:07]} 36. Ba5 {[%clk 0:00:29]}  Kf7 {[%clk 0:00:06]} 37. Bc7 {[%clk 0:00:29]}  Ke7 {[%clk 0:00:07]} 38. Kg1 {[%clk 0:00:27]}  Kd7 {[%clk 0:00:07]} 39. Bxd6 {[%clk 0:00:24]}  Rxd6 {[%clk 0:00:04]} 40. Nxd6 {[%clk 0:00:24]}  Kxd6 {[%clk 0:00:04]} 41. Kf2 {[%clk 0:00:24]}  c4 {[%clk 0:00:02]} 42. Ke2 {[%clk 0:00:24]}  a5 {[%clk 0:00:01]} 43. Kd2 {[%clk 0:00:24]} 1-0


[Site "https://www.chess.com"]

[Event "Titled Tuesday Blitz March 21 Early 2023"]
[White "Demin, Vladimir"]
[Black "Tarasova, Viktoriya"]
[WhiteFideId "4167457"]
[BlackFideId "4175840"]
[WhiteElo "2629"]
[BlackElo "2182"]
[Result "1-0"]
[Round "08"]
[TimeControl "180+2"]
[Date "2023.03.21"]
[WhiteClock "0:00:25"]
[BlackClock "0:00:06"]

1. d4 {[%clk 0:03:00]}  Nf6 {[%clk 0:03:00]} 2. Nc3 {[%clk 0:03:00]}  d5 {[%clk 0:02:59]} 3. Bf4 {[%clk 0:03:00]}  a6 {[%clk 0:02:54]} 4. e3 {[%clk 0:03:00]}  e6 {[%clk 0:02:54]} 5. g4 {[%clk 0:02:58]}  h6 {[%clk 0:02:53]} 6. Bd3 {[%clk 0:02:56]}  Bd6 {[%clk 0:02:53]} 7. Qf3 {[%clk 0:02:54]}  c5 {[%clk 0:02:46]} 8. dxc5 {[%clk 0:02:53]}  Bxc5 {[%clk 0:02:42]} 9. e4 {[%clk 0:02:42]}  d4 {[%clk 0:02:39]} 10. Nce2 {[%clk 0:02:40]}  Nc6 {[%clk 0:02:35]} 11. e5 {[%clk 0:02:39]}  Nd5 {[%clk 0:02:33]} 12. O-O-O {[%clk 0:02:31]}  Qc7 {[%clk 0:01:57]} 13. Kb1 {[%clk 0:02:20]}  b5 {[%clk 0:01:53]} 14. Bg3 {[%clk 0:02:16]}  Bb7 {[%clk 0:01:54]} 15. Be4 {[%clk 0:02:16]}  O-O-O {[%clk 0:01:42]} 16. Nf4 {[%clk 0:01:58]}  Nxf4 {[%clk 0:01:35]} 17. Bxf4 {[%clk 0:01:56]}  Nb4 {[%clk 0:01:24]} 18. Bxb7+ {[%clk 0:01:47]}  Qxb7 {[%clk 0:01:23]} 19. Qxb7+ {[%clk 0:01:47]}  Kxb7 {[%clk 0:01:24]} 20. Nf3 {[%clk 0:01:47]}  Nc6 {[%clk 0:01:03]} 21. Nd2 {[%clk 0:01:35]}  Rd5 {[%clk 0:00:32]} 22. Rhe1 {[%clk 0:01:23]}  Rhd8 {[%clk 0:00:31]} 23. Bg3 {[%clk 0:01:21]}  Bb6 {[%clk 0:00:29]} 24. f4 {[%clk 0:01:18]}  d3 {[%clk 0:00:24]} 25. c3 {[%clk 0:01:17]}  Na5 {[%clk 0:00:16]} 26. Ne4 {[%clk 0:01:11]}  Bc7 {[%clk 0:00:11]} 27. Bf2 {[%clk 0:01:07]}  Nc4 {[%clk 0:00:11]} 28. b3 {[%clk 0:01:07]}  Na3+ {[%clk 0:00:09]} 29. Kb2 {[%clk 0:01:07]}  Nc2 {[%clk 0:00:09]} 30. Rg1 {[%clk 0:00:55]}  Kc6 {[%clk 0:00:10]} 31. Rg3 {[%clk 0:00:44]}  a5 {[%clk 0:00:10]} 32. c4 {[%clk 0:00:33]}  bxc4 {[%clk 0:00:10]} 33. bxc4 {[%clk 0:00:34]}  R5d7 {[%clk 0:00:10]} 34. Nc5 {[%clk 0:00:33]}  Rb8+ {[%clk 0:00:10]} 35. Kc3 {[%clk 0:00:33]}  a4 {[%clk 0:00:07]} 36. Nxd7 {[%clk 0:00:30]}  Ba5+ {[%clk 0:00:06]} 37. Kxd3 {[%clk 0:00:30]}  Nb4+ {[%clk 0:00:07]} 38. Ke4 {[%clk 0:00:29]}  Rd8 {[%clk 0:00:06]} 39. a3 {[%clk 0:00:25]} 1-0


[Site "https://www.chess.com"]

[Event "Titled Tuesday Blitz March 21 Early 2023"]
[White "wqws"]
[Black "Melikhov, Evgeny V."]
[BlackFideId "4122046"]
[WhiteElo "2623"]
[BlackElo "2158"]
[Result "1/2-1/2"]
[Round "08"]
[TimeControl "180+2"]
[Date "2023.03.21"]
[WhiteClock "0:01:59"]
[BlackClock "0:00:30"]

1. e4 {[%clk 0:03:00]}  e5 {[%clk 0:02:59]} 2. Nf3 {[%clk 0:03:00]}  Nc6 {[%clk 0:03:00]} 3. Bb5 {[%clk 0:02:59]}  a6 {[%clk 0:02:59]} 4. Ba4 {[%clk 0:02:59]}  Nf6 {[%clk 0:02:59]} 5. d3 {[%clk 0:02:59]}  b5 {[%clk 0:02:55]} 6. Bb3 {[%clk 0:02:59]}  Be7 {[%clk 0:02:54]} 7. O-O {[%clk 0:02:59]}  d6 {[%clk 0:02:52]} 8. Nc3 {[%clk 0:02:56]}  O-O {[%clk 0:02:51]} 9. h3 {[%clk 0:02:55]}  Be6 {[%clk 0:02:41]} 10. Bg5 {[%clk 0:02:50]}  Qd7 {[%clk 0:02:35]} 11. Bxf6 {[%clk 0:02:41]}  Bxf6 {[%clk 0:02:34]} 12. Nd5 {[%clk 0:02:42]}  Bxd5 {[%clk 0:02:34]} 13. Bxd5 {[%clk 0:02:43]}  Rad8 {[%clk 0:02:24]} 14. a4 {[%clk 0:02:42]}  b4 {[%clk 0:02:11]} 15. Bc4 {[%clk 0:02:41]}  Qc8 {[%clk 0:02:05]} 16. c3 {[%clk 0:02:38]}  bxc3 {[%clk 0:01:54]} 17. bxc3 {[%clk 0:02:39]}  Na5 {[%clk 0:01:54]} 18. Ba2 {[%clk 0:02:39]}  c5 {[%clk 0:01:49]} 19. Nd2 {[%clk 0:02:39]}  Kh8 {[%clk 0:01:43]} 20. Bd5 {[%clk 0:02:37]}  Bg5 {[%clk 0:01:37]} 21. Nc4 {[%clk 0:02:37]}  Nxc4 {[%clk 0:01:37]} 22. dxc4 {[%clk 0:02:38]}  f5 {[%clk 0:01:35]} 23. exf5 {[%clk 0:02:35]}  Qxf5 {[%clk 0:01:30]} 24. Rb1 {[%clk 0:02:36]}  Rf6 {[%clk 0:01:28]} 25. Qg4 {[%clk 0:02:31]}  Qxg4 {[%clk 0:01:16]} 26. hxg4 {[%clk 0:02:32]}  Bd2 {[%clk 0:01:15]} 27. Rb3 {[%clk 0:02:22]}  Rdf8 {[%clk 0:01:13]} 28. Bf3 {[%clk 0:02:22]}  Rf4 {[%clk 0:01:02]} 29. Rd1 {[%clk 0:02:19]}  e4 {[%clk 0:00:54]} 30. Rxd2 {[%clk 0:02:00]}  exf3 {[%clk 0:00:52]} 31. gxf3 {[%clk 0:02:00]}  Rxf3 {[%clk 0:00:41]} 32. Rxd6 {[%clk 0:01:58]}  Rxf2 {[%clk 0:00:39]} 33. Rxa6 {[%clk 0:01:59]}  Rf1+ {[%clk 0:00:32]} 34. Kg2 {[%clk 0:01:59]}  R8f2+ {[%clk 0:00:31]} 35. Kg3 {[%clk 0:01:59]}  Rf3+ {[%clk 0:00:31]} 36. Kg2 {[%clk 0:01:59]}  R1f2+ {[%clk 0:00:29]} 37. Kg1 {[%clk 0:01:58]}  Rf1+ {[%clk 0:00:30]} 38. Kg2 {[%clk 0:01:58]}  R1f2+ {[%clk 0:00:29]} 39. Kg1 {[%clk 0:01:59]}  Rf1+ {[%clk 0:00:30]} 40. Kg2 {[%clk 0:01:59]} 1/2-1/2


[Site "https://www.chess.com"]

[Event "Titled Tuesday Blitz March 21 Early 2023"]
[White "Savitha Shri B"]
[Black "Ordekalog"]
[WhiteFideId "35061887"]
[WhiteElo "2191"]
[BlackElo "2582"]
[Result "1-0"]
[Round "08"]
[TimeControl "180+2"]
[Date "2023.03.21"]
[WhiteClock "0:00:06"]
[BlackClock "0:00:04"]

1. Nf3 {[%clk 0:03:00]}  d5 {[%clk 0:02:57]} 2. d4 {[%clk 0:03:00]}  c5 {[%clk 0:02:56]} 3. dxc5 {[%clk 0:02:56]}  e6 {[%clk 0:02:56]} 4. g3 {[%clk 0:02:56]}  Bxc5 {[%clk 0:02:55]} 5. Bg2 {[%clk 0:02:57]}  Nf6 {[%clk 0:02:55]} 6. O-O {[%clk 0:02:56]}  Nc6 {[%clk 0:02:56]} 7. Bg5 {[%clk 0:02:53]}  O-O {[%clk 0:02:55]} 8. Nbd2 {[%clk 0:02:52]}  h6 {[%clk 0:02:55]} 9. Bxf6 {[%clk 0:02:48]}  Qxf6 {[%clk 0:02:56]} 10. c3 {[%clk 0:02:48]}  Rd8 {[%clk 0:02:54]} 11. Qc2 {[%clk 0:02:48]}  e5 {[%clk 0:02:51]} 12. e4 {[%clk 0:02:46]}  Be6 {[%clk 0:02:43]} 13. b4 {[%clk 0:02:37]}  Bb6 {[%clk 0:02:38]} 14. b5 {[%clk 0:02:36]}  Na5 {[%clk 0:02:23]} 15. Rac1 {[%clk 0:02:16]}  Rac8 {[%clk 0:02:23]} 16. Qb1 {[%clk 0:02:15]}  Nc4 {[%clk 0:02:09]} 17. exd5 {[%clk 0:02:05]}  Bxd5 {[%clk 0:02:09]} 18. Nxc4 {[%clk 0:01:54]}  Bxc4 {[%clk 0:02:08]} 19. Rfe1 {[%clk 0:01:53]}  Bd3 {[%clk 0:01:47]} 20. Qb2 {[%clk 0:01:47]}  e4 {[%clk 0:01:46]} 21. Nd4 {[%clk 0:01:45]}  Qg6 {[%clk 0:01:11]} 22. Nb3 {[%clk 0:01:30]}  Rc7 {[%clk 0:01:08]} 23. c4 {[%clk 0:01:28]}  Rxc4 {[%clk 0:01:03]} 24. Rxc4 {[%clk 0:01:19]}  Bxc4 {[%clk 0:01:04]} 25. Bxe4 {[%clk 0:01:19]}  Qg5 {[%clk 0:00:41]} 26. a4 {[%clk 0:01:03]}  Bxb3 {[%clk 0:00:31]} 27. Qxb3 {[%clk 0:01:04]}  Rd2 {[%clk 0:00:31]} 28. Rf1 {[%clk 0:01:04]}  Qc5 {[%clk 0:00:26]} 29. Qf3 {[%clk 0:01:03]}  Qd4 {[%clk 0:00:15]} 30. Bxb7 {[%clk 0:01:00]}  Qe5 {[%clk 0:00:08]} 31. Bc6 {[%clk 0:00:51]}  g6 {[%clk 0:00:08]} 32. Kg2 {[%clk 0:00:50]}  Kg7 {[%clk 0:00:09]} 33. h4 {[%clk 0:00:49]}  Qd4 {[%clk 0:00:09]} 34. h5 {[%clk 0:00:41]}  g5 {[%clk 0:00:09]} 35. Qf5 {[%clk 0:00:37]}  Qc5 {[%clk 0:00:08]} 36. Qf3 {[%clk 0:00:31]}  Rd6 {[%clk 0:00:06]} 37. Qe2 {[%clk 0:00:22]}  Qd4 {[%clk 0:00:06]} 38. Bf3 {[%clk 0:00:15]}  Re6 {[%clk 0:00:06]} 39. Qc2 {[%clk 0:00:15]}  Rf6 {[%clk 0:00:06]} 40. Qe4 {[%clk 0:00:13]}  Qc5 {[%clk 0:00:06]} 41. Qe3 {[%clk 0:00:08]}  Qd6 {[%clk 0:00:05]} 42. Qe2 {[%clk 0:00:08]}  Qc5 {[%clk 0:00:05]} 43. Be4 {[%clk 0:00:07]}  Qe5 {[%clk 0:00:04]} 44. Bd3 {[%clk 0:00:07]}  Qd4 {[%clk 0:00:05]} 45. Bb1 {[%clk 0:00:06]}  g4 {[%clk 0:00:04]} 46. Kh1 {[%clk 0:00:03]}  Qd5+ {[%clk 0:00:04]} 47. Kg1 {[%clk 0:00:02]}  Qxh5 {[%clk 0:00:05]} 48. Qe4 {[%clk 0:00:01]}  Qh3 {[%clk 0:00:04]} 49. Qh7+ {[%clk 0:00:02]}  Kf8 {[%clk 0:00:04]} 50. Qh8+ {[%clk 0:00:02]}  Ke7 {[%clk 0:00:04]} 51. Qb8 {[%clk 0:00:02]}  Bd4 {[%clk 0:00:03]} 52. Qc7+ {[%clk 0:00:01]}  Kf8 {[%clk 0:00:02]} 53. Qd8+ {[%clk 0:00:02]}  Kg7 {[%clk 0:00:02]} 54. Qxd4 {[%clk 0:00:03]}  h5 {[%clk 0:00:03]} 55. Qe4 {[%clk 0:00:04]}  h4 {[%clk 0:00:03]} 56. Qh7+ {[%clk 0:00:04]}  Kf8 {[%clk 0:00:02]} 57. Qxh4 {[%clk 0:00:05]}  Ke7 {[%clk 0:00:03]} 58. Qxh3 {[%clk 0:00:05]}  gxh3 {[%clk 0:00:04]} 59. Kh2 {[%clk 0:00:06]} 1-0


[Site "https://www.chess.com"]